lending/lending_fUSD_20240621
["ID","MTS","AMOUNT","RATE_DAILY","PERIOD"]
[330067205,1718983853517,-500.0,0.00021917,4]
[330067206,1718983853527,-500.0,0.00021917,4]
[330067207,1718983853536,-1214.21,0.00021917,4]
[330067208,1718983853546,-500.0,0.00021917,4]
[330067209,1718983853556,-500.0,0.00021917,4]
[330067210,1718983853566,-2040.47,0.00021917,4]
[330067211,1718983853576,-1358.71,0.00021917,4]
[330067212,1718983853587,-781.17,0.00021917,4]
[330067213,1718983853597,-1913.32,0.00021917,4]
[330067214,1718983853612,-695.91,0.00021917,4]
[330067215,1718983853621,-500.0,0.00021917,4]
[330067216,1718983853631,-500.0,0.00021917,4]
[330067217,1718983853640,-500.0,0.00021917,4]
[330067218,1718983853649,-526.41,0.00021917,4]
[330067219,1718983853659,-752.45,0.00021917,4]
[330067220,1718983853668,-500.0,0.00021917,4]
[330067221,1718983853677,-1000.0,0.00021917,4]
[330067222,1718983853686,-619.71,0.00021917,4]
[330067223,1718983853696,-500.0,0.00021917,4]
[330067224,1718983853705,-151.0,0.00021917,2]
[330067225,1718983853715,-500.0,0.00021917,4]
[330067226,1718983853725,-1059.86,0.00021917,4]
[330067227,1718983853735,-500.0,0.00021917,4]
[330067228,1718983853744,-2167.75,0.00021917,4]
[330067229,1718983853754,-500.0,0.00021917,4]
[330067230,1718983853764,-500.0,0.00021917,4]
[330067231,1718983853773,-151.0,0.00021917,2]
[330067232,1718983853783,-427.52576585,0.00021917,4]
[330067233,1718983853792,-1417.74,0.00021917,4]
[330067234,1718983853802,-500.0,0.00021917,4]
[330067235,1718983853812,-151.0,0.00021917,2]
[330067236,1718983853821,-650.53,0.00021917,4]
[330067237,1718983853831,-151.0,0.00021917,2]
[330067238,1718983853842,-500.0,0.00021917,4]
[330067239,1718983853853,-151.0,0.00021917,2]
[330067240,1718983853864,-500.0,0.00021917,4]
[330067241,1718983853875,-151.0,0.00021917,2]
[330067242,1718983853885,-294.0,0.00021917,2]
[330067243,1718983853895,-500.0,0.00021917,4]
[330067244,1718983853905,-500.0,0.00021917,4]
[330067245,1718983853915,-500.0,0.00021917,4]
[330067246,1718983853925,-2327.33,0.00021917,4]
[330067247,1718983853935,-500.0,0.00021917,4]
[330067248,1718983853945,-735.13,0.00021917,4]
[330067249,1718983853955,-821.46,0.00021917,4]
[330067250,1718983853965,-500.0,0.00021917,4]
[330067251,1718983853974,-1984.57,0.00021917,4]
[330067252,1718983853984,-1432.14,0.00021917,4]
[330067253,1718983853994,-1384.45,0.00021917,4]
[330067254,1718983854003,-2150.02,0.00021917,4]
[330067255,1718983854013,-691.74,0.00021917,4]
[330067256,1718983854027,-500.0,0.00021917,4]
[330067257,1718983854038,-1203.66,0.00021917,4]
[330067258,1718983854048,-500.0,0.00021917,4]
[330067259,1718983854058,-721.24,0.00021917,4]
[330067260,1718983854070,-500.0,0.00021917,4]
[330067261,1718983854080,-1063.04,0.00021917,4]
[330067262,1718983854091,-647.37343785,0.00021917,4]
[330067263,1718983854107,-440.6669075,0.00021917,4]
[330067264,1718983854118,-500.0,0.00021917,4]
[330067265,1718983854129,-1470.6,0.00021917,4]
[330067266,1718983854139,-559.40792477,0.00021917,4]
[330067267,1718983854149,-1809.85,0.00021917,4]
[330067268,1718983854159,-500.0,0.00021917,4]
[330067269,1718983854169,-500.0,0.00021917,4]
[330067270,1718983854180,-553.08458167,0.00021917,4]
[330067271,1718983854190,-607.24,0.00021917,4]
[330067272,1718983854200,-1520.21,0.00021917,4]
[330067273,1718983854211,-500.0,0.00021917,4]
[330067274,1718983854221,-500.0,0.00021917,4]
[330067275,1718983854231,-826.07,0.00021917,4]
[330067276,1718983854241,-1586.99,0.00021917,4]
[330067277,1718983854250,-500.0,0.00021917,4]
[330067278,1718983854260,-685.3,0.00021917,4]
[330067279,1718983854270,-1302.27,0.00021917,4]
[330067280,1718983854280,-500.0,0.00021917,4]
[330067281,1718983854290,-1804.82,0.00021917,4]
[330067282,1718983854301,-500.0,0.00021917,4]
[330067283,1718983854311,-652.81,0.00021917,4]
[330067284,1718983854321,-539.51,0.00021917,4]
[330067285,1718983854331,-599.4354956,0.00021917,4]
[330067286,1718983854340,-500.0,0.00021917,4]
[330067287,1718983854352,-151.0,0.00021917,2]
[330067288,1718983854362,-1020.42,0.00021917,4]
[330067289,1718983854372,-151.0,0.00021917,2]
[330067290,1718983854381,-500.0,0.00021917,4]
[330067291,1718983854392,-151.0,0.00021917,2]
[330067292,1718983854402,-621.35,0.00021917,4]
[330067293,1718983854412,-555.0,0.00021917,4]
[330067294,1718983854422,-2386.42,0.00021917,4]
[330067295,1718983854432,-500.0,0.00021917,4]
[330067296,1718983854442,-644.07,0.00021917,4]
[330067297,1718983854452,-151.0,0.00021917,2]
[330067298,1718983854462,-1616.71,0.00021917,4]
[330067299,1718983854472,-701.71,0.00021917,4]
[330067300,1718983854482,-1063.15,0.00021917,4]
[330067301,1718983854492,-1506.07,0.00021917,4]
[330067302,1718983854502,-151.0,0.00021917,2]
[330067303,1718983854512,-151.0,0.00021917,2]
[330067304,1718983854522,-151.0,0.00021917,2]
[330067305,1718983854531,-151.0,0.00021917,2]
[330067306,1718983854540,-577.73,0.00021917,4]
[330067307,1718983854550,-151.0,0.00021917,2]
[330067308,1718983854559,-151.0,0.00021917,2]
[330067309,1718983854569,-1409.69,0.00021917,4]
[330067310,1718983854579,-151.0,0.00021917,2]
[330067311,1718983854589,-1943.43,0.00021917,4]
[330067312,1718983854599,-1261.21,0.00021917,4]
[330067313,1718983854611,-500.0,0.00021917,4]
[330067314,1718983854621,-500.0,0.00021917,4]
[330067315,1718983854631,-500.0,0.00021917,4]
[330067316,1718983854641,-1097.29,0.00021917,4]
[330067317,1718983854651,-500.0,0.00021917,4]
[330067318,1718983854661,-677.42,0.00021917,4]
[330067319,1718983854671,-514.0921319,0.00021917,4]
[330067320,1718983854681,-539.15,0.00021917,4]
[330067321,1718983854691,-500.0,0.00021917,4]
[330067322,1718983854702,-1403.63,0.00021917,4]
[330067323,1718983854712,-1694.05,0.00021917,4]
[330067324,1718983854722,-500.0,0.00021917,4]
[330067325,1718983854732,-722.09,0.00021917,4]
[330067326,1718983854742,-500.0,0.00021917,4]
[330067327,1718983854752,-500.0,0.00021917,4]
[330067328,1718983854762,-500.0,0.00021917,4]
[330067329,1718983854772,-500.0,0.00021917,4]
[330067330,1718983854782,-1132.61,0.00021917,4]
[330067331,1718983854792,-500.0,0.00021917,4]
[330067332,1718983854802,-151.0,0.00021917,2]
[330067333,1718983854812,-500.0,0.00021917,4]
[330067334,1718983854823,-181.237324,0.00021917,2]
[330067335,1718983854833,-2488.92,0.00021917,4]
[330067336,1718983854843,-652.73,0.00021917,4]
[330067337,1718983854854,-500.0,0.00021917,4]
[330067338,1718983854864,-500.0,0.00021917,4]
[330067339,1718983854873,-500.0,0.00021917,4]
[330067340,1718983854882,-2722.82,0.00021917,4]
[330067341,1718983854893,-1434.51,0.00021917,4]
[330067342,1718983854903,-500.0,0.00021917,4]
[330067343,1718983854913,-500.0,0.00021917,4]
[330067344,1718983854924,-500.0,0.00021917,4]
[330067345,1718983854934,-500.0,0.00021917,4]
[330067346,1718983854943,-615.51,0.00021917,4]
[330067347,1718983854954,-1512.73,0.00021917,4]
[330067348,1718983854964,-1876.72,0.00021917,4]
[330067349,1718983854974,-500.0,0.00021917,4]
[330067350,1718983854984,-2114.72,0.00021917,4]
[330067351,1718983854994,-951.01,0.00021917,4]
[330067352,1718983855003,-1761.14248623,0.00021917,4]
[330067353,1718983855815,-198.36751377,0.00021917,4]
[330067354,1718983855825,-57.90848623,0.00021917,4]
[330067355,1718983856283,-242.03430423,0.00014863,2]
[330067356,1718983856293,-257.96569577,0.00021917,4]
[330067357,1718983856305,-184.125818,0.00021917,4]
[330067358,1718983856315,-1651.22,0.00021917,4]
[330067359,1718983856324,-894.72,0.00021917,4]
[330067360,1718983856334,-1258.25,0.00021917,4]
[330067361,1718983856343,-506.24,0.00021917,4]
[330067362,1718983856356,-500.0,0.00021917,4]
[330067363,1718983856365,-240.244182,0.00021917,4]
[330067364,1718983857309,-482.76727412,0.00012465,2]
[330067365,1718983857318,-171.75374879,0.00021817,2]
[330067366,1718983857328,-151.0,0.00021907,2]
[330067367,1718983857338,-404.895287,0.00021907,2]
[330067368,1718983857347,-7015.035818,0.00021917,4]
[330067369,1718983857363,-500.0,0.00021917,4]
[330067370,1718983857372,-471.89918205,0.00021917,4]
[330067371,1718983857380,-500.0,0.00021917,4]
[330067372,1718983857389,-512.8,0.00021917,4]
[330067373,1718983857398,-605.27,0.00021917,4]
[330067374,1718983857407,-500.0,0.00021917,4]
[330067375,1718983857416,-500.0,0.00021917,4]
[330067376,1718983857425,-926.72,0.00021917,4]
[330067377,1718983857434,-1037.73,0.00021917,4]
[330067378,1718983857443,-500.0,0.00021917,4]
[330067379,1718983857452,-1015.83,0.00021917,4]
[330067380,1718983857462,-543.22,0.00021917,4]
[330067381,1718983857472,-500.0,0.00021917,4]
[330067382,1718983857481,-7277.48,0.00021917,4]
[330067383,1718983857491,-1677.94,0.00021917,4]
[330067384,1718983857500,-1368.07,0.00021917,4]
[330067385,1718983857509,-500.0,0.00021917,4]
[330067386,1718983857519,-1455.17,0.00021917,4]
[330067387,1718983857528,-1782.96,0.00021917,4]
[330067388,1718983857537,-500.0,0.00021917,4]
[330067389,1718983857546,-500.0,0.00021917,4]
[330067390,1718983857556,-500.0,0.00021917,4]
[330067391,1718983857565,-2303.4,0.00021917,4]
[330067392,1718983857575,-4321.05,0.00021917,4]
[330067393,1718983857583,-500.0,0.00021917,4]
[330067394,1718983857593,-691.17,0.00021917,4]
[330067395,1718983857606,-2663.4,0.00021917,4]
[330067397,1718983857617,-1956.48,0.00021917,4]
[330067398,1718983857626,-500.0,0.00021917,4]
[330067399,1718983857635,-500.0,0.00021917,4]
[330067400,1718983857645,-500.0,0.00021917,4]
[330067401,1718983857655,-185.56724816,0.00021917,4]
[330067402,1718983857665,-575.01,0.00021917,4]
[330067403,1718983857675,-16645.61,0.00021917,4]
[330067404,1718983857684,-500.0,0.00021917,4]
[330067405,1718983857694,-553.58,0.00021917,4]
[330067406,1718983857704,-965.87,0.00021917,4]
[330067407,1718983857713,-500.0,0.00021917,4]
[330067408,1718983857723,-1055.25,0.00021917,4]
[330067409,1718983857732,-516.09683566,0.00021917,4]
[330067410,1718983857741,-500.0,0.00021917,4]
[330067411,1718983857751,-816.32,0.00021917,4]
[330067412,1718983857760,-500.0,0.00021917,4]
[330067413,1718983857769,-653.01,0.00021917,7]
[330067414,1718983857778,-1837.86,0.00021917,4]
[330067415,1718983857788,-512.07,0.00021917,4]
[330067416,1718983857797,-2360.59,0.00021917,4]
[330067417,1718983857807,-500.0,0.00021917,4]
[330067418,1718983857816,-1096.78,0.00021917,4]
[330067419,1718983857826,-1269.82,0.00021917,4]
[330067420,1718983857835,-2386.5,0.00021917,4]
[330067421,1718983857845,-1098.92,0.00021917,4]
[330067422,1718983857858,-500.0,0.00021917,4]
[330067423,1718983857868,-151.0,0.00021917,2]
[330067424,1718983857878,-151.0,0.00021917,2]
[330067425,1718983857888,-500.0,0.00021917,4]
[330067426,1718983857897,-151.0,0.00021917,2]
[330067427,1718983857907,-746.03,0.00021917,4]
[330067428,1718983857917,-2680.32,0.00021917,4]
[330067429,1718983857927,-2496.12,0.00021917,4]
[330067430,1718983857936,-151.0,0.00021917,2]
[330067431,1718983857947,-1992.99,0.00021917,4]
[330067432,1718983857958,-805.68,0.00021917,4]
[330067433,1718983857968,-151.0,0.00021917,2]
[330067434,1718983857978,-2326.95,0.00021917,4]
[330067435,1718983857988,-151.0,0.00021917,2]
[330067436,1718983857998,-151.0,0.00021917,2]
[330067437,1718983858008,-500.0,0.00021917,4]
[330067438,1718983858017,-537.21,0.00021917,4]
[330067439,1718983858032,-2872.78,0.00021917,4]
[330067440,1718983858041,-500.0,0.00021917,4]
[330067441,1718983858051,-5462.91,0.00021917,4]
[330067442,1718983858061,-734.83,0.00021917,4]
[330067443,1718983858072,-1123.75,0.00021917,4]
[330067444,1718983858082,-510.08775457,0.00021917,4]
[330067445,1718983858092,-151.0,0.00021917,2]
[330067446,1718983858104,-151.0,0.00021917,2]
[330067447,1718983858113,-1154.07,0.00021917,4]
[330067448,1718983858122,-151.0,0.00021917,2]
[330067449,1718983858132,-1263.4,0.00021917,4]
[330067450,1718983858141,-151.0,0.00021917,2]
[330067451,1718983858151,-151.0,0.00021917,2]
[330067452,1718983858160,-1305.24,0.00021917,4]
[330067453,1718983858169,-151.0,0.00021917,2]
[330067454,1718983858178,-151.0,0.00021917,2]
[330067455,1718983858188,-151.0,0.00021917,2]
[330067456,1718983858197,-151.0,0.00021917,2]
[330067457,1718983858207,-151.0,0.00021917,2]
[330067458,1718983858216,-4720.54,0.00021917,4]
[330067459,1718983858229,-151.0,0.00021917,2]
[330067460,1718983858239,-520.67,0.00021917,4]
[330067461,1718983858248,-500.0,0.00021917,4]
[330067462,1718983858258,-151.0,0.00021917,2]
[330067463,1718983858268,-500.0,0.00021917,4]
[330067464,1718983858278,-786.19,0.00021917,4]
[330067465,1718983858287,-3644.69,0.00021917,4]
[330067466,1718983858297,-500.0,0.00021917,4]
[330067467,1718983858306,-747.51,0.00021917,4]
[330067468,1718983858316,-276.59961,0.00021917,2]
[330067469,1718983858325,-2612.47,0.00021917,4]
[330067470,1718983858335,-13741.07,0.00021917,4]
[330067471,1718983858345,-1473.65,0.00021917,4]
[330067472,1718983858357,-500.0,0.00021917,4]
[330067473,1718983858367,-500.0,0.00021917,4]
[330067474,1718983858376,-500.0,0.00021917,4]
[330067475,1718983858386,-500.0,0.00021917,4]
[330067476,1718983858395,-1148.57,0.00021917,4]
[330067477,1718983858404,-4880.5,0.00021917,4]
[330067478,1718983858414,-500.0,0.00021917,4]
[330067479,1718983858423,-20789.5,0.00021917,4]
[330067480,1718983858432,-1489.4,0.00021917,4]
[330067481,1718983858443,-500.0,0.00021917,4]
[330067482,1718983858453,-1630.01,0.00021917,4]
[330067483,1718983858463,-2006.64,0.00021917,4]
[330067484,1718983858472,-1534.38,0.00021917,4]
[330067485,1718983858482,-1998.69,0.00021917,4]
[330067486,1718983858492,-500.0,0.00021917,4]
[330067487,1718983858501,-151.0,0.00021917,2]
[330067488,1718983858511,-500.0,0.00021917,4]
[330067489,1718983858520,-151.0,0.00021917,2]
[330067490,1718983858529,-151.0,0.00021917,2]
[330067491,1718983858540,-151.0,0.00021917,2]
[330067492,1718983858550,-693.93,0.00021917,4]
[330067493,1718983858559,-815.86,0.00021917,4]
[330067494,1718983858568,-500.0,0.00021917,4]
[330067495,1718983858578,-3000.0,0.00021917,14]
[330067496,1718983858587,-3000.0,0.00021917,14]
[330067497,1718983858597,-1939.6,0.00021917,4]
[330067498,1718983858608,-3000.0,0.00021917,14]
[330067499,1718983858618,-3000.0,0.00021917,14]
[330067500,1718983858628,-1522.18,0.00021917,4]
[330067501,1718983858637,-3000.0,0.00021917,14]
[330067502,1718983858647,-500.0,0.00021917,4]
[330067503,1718983858656,-2758.34,0.00021917,14]
[330067504,1718983858666,-662.84,0.00021917,4]
[330067505,1718983858677,-152.801409,0.00021917,2]
[330067506,1718983858808,-500.0,0.00021917,4]
[330067507,1718983858834,-664.88,0.00021917,4]
[330067508,1718983858844,-1020.11,0.00021917,4]
[330067509,1718983858856,-500.0,0.00021917,4]
[330067510,1718983858865,-1513.01,0.00021917,4]
[330067511,1718983858877,-2959.33,0.00021917,4]
[330067512,1718983858887,-52468.42,0.00021917,4]
[330067513,1718983858896,-1624.01,0.00021917,4]
[330067514,1718983858905,-151.0,0.00021917,2]
[330067515,1718983858914,-151.0,0.00021917,2]
[330067516,1718983858923,-2348.56,0.00021917,4]
[330067517,1718983858932,-500.0,0.00021917,4]
[330067518,1718983858941,-151.0,0.00021917,2]
[330067519,1718983858950,-151.0,0.00021917,2]
[330067520,1718983858959,-151.0,0.00021917,2]
[330067521,1718983858967,-151.0,0.00021917,2]
[330067522,1718983858977,-151.0,0.00021917,2]
[330067523,1718983858985,-52308.89,0.00021917,4]
[330067524,1718983858994,-500.0,0.00021917,4]
[330067525,1718983859003,-500.0,0.00021917,4]
[330067526,1718983859013,-2172.89,0.00021917,4]
[330067527,1718983859023,-907.22,0.00021917,4]
[330067528,1718983859036,-850.01,0.00021917,4]
[330067529,1718983859045,-500.0,0.00021917,4]
[330067530,1718983859055,-2839.98,0.00021917,4]
[330067531,1718983859064,-500.0,0.00021917,4]
[330067532,1718983859075,-6245.7,0.00021917,4]
[330067533,1718983859084,-500.0,0.00021917,4]
[330067534,1718983859094,-2679.59,0.00021917,4]
[330067535,1718983859108,-979.5,0.00021917,4]
[330067536,1718983859117,-2395.22,0.00021917,4]
[330067537,1718983859127,-2729.57,0.00021917,4]
[330067538,1718983859137,-500.0,0.00021917,4]
[330067539,1718983859147,-773.47,0.00021917,4]
[330067540,1718983859156,-500.0,0.00021917,4]
[330067541,1718983859166,-500.0,0.00021917,4]
[330067542,1718983859176,-1095.26,0.00021917,4]
[330067543,1718983859186,-548.59,0.00021917,4]
[330067544,1718983859195,-898.22,0.00021917,4]
[330067545,1718983859205,-151.0,0.00021917,2]
[330067546,1718983859215,-2167.95,0.00021917,4]
[330067547,1718983859225,-151.0,0.00021917,2]
[330067548,1718983859235,-500.0,0.00021917,4]
[330067549,1718983859244,-1679.35,0.00021917,4]
[330067550,1718983859254,-500.0,0.00021917,4]
[330067551,1718983859265,-600.26,0.00021917,4]
[330067552,1718983859274,-500.0,0.00021917,4]
[330067553,1718983859284,-2529.43,0.00021917,4]
[330067554,1718983859295,-500.0,0.00021917,4]
[330067555,1718983859305,-2000.0,0.00021917,4]
[330067556,1718983859316,-500.0,0.00021917,4]
[330067557,1718983859325,-500.0,0.00021917,4]
[330067558,1718983859334,-1441.17,0.00021917,4]
[330067559,1718983859344,-1526.55,0.00021917,4]
[330067560,1718983859358,-500.0,0.00021917,4]
[330067561,1718983859368,-500.0,0.00021917,4]
[330067562,1718983859378,-641.46,0.00021917,4]
[330067563,1718983859387,-3357.89,0.00021917,4]
[330067564,1718983859396,-1038.2,0.00021917,4]
[330067565,1718983859405,-500.0,0.00021917,4]
[330067566,1718983859415,-711.67,0.00021917,4]
[330067567,1718983859423,-913.73,0.00021917,4]
[330067568,1718983859432,-500.0,0.00021917,4]
[330067569,1718983859441,-665.68,0.00021917,4]
[330067570,1718983859451,-1035.14,0.00021917,4]
[330067571,1718983859460,-151.0,0.00021917,2]
[330067572,1718983859469,-151.0,0.00021917,2]
[330067573,1718983859478,-500.0,0.00021917,4]
[330067574,1718983859487,-955.69,0.00021917,4]
[330067575,1718983859496,-912.8,0.00021917,4]
[330067576,1718983859506,-3579.8,0.00021917,4]
[330067577,1718983859516,-500.0,0.00021917,4]
[330067578,1718983859526,-500.0,0.00021917,4]
[330067579,1718983859535,-500.0,0.00021917,4]
[330067580,1718983859546,-500.0,0.00021917,4]
[330067581,1718983859557,-500.0,0.00021917,4]
[330067582,1718983859568,-500.0,0.00021917,4]
[330067583,1718983859578,-500.0,0.00021917,4]
[330067584,1718983859589,-582.53,0.00021917,4]
[330067585,1718983859599,-1474.83,0.00021917,4]
[330067586,1718983859616,-341.39839016,0.00021917,4]
[330067587,1718983859638,-699.27,0.00021917,4]
[330067588,1718983859913,-366.0285791,0.00014865,2]
[330067589,1718983859923,-1013.97160984,0.00021917,4]
[330067590,1718983859933,-1193.20848546,0.00021917,4]
[330067591,1718983863995,204.25493537,0.0001236,2]
[330067592,1718983864016,204.25493537,0.0001236,2]
[330067594,1718983870618,-205.99783548,0.0001236,2]
[330067595,1718983872816,-689.92053766,0.0001236,2]
[330067596,1718983873833,-218.98195667,0.0001236,2]
[330067597,1718983874696,-180.77276171,0.0001236,2]
[330067619,1718983955025,1008.0,0.00026,60]
[330067636,1718984198894,1112.55773879,0.00024,120]
[330067641,1718984328213,1000.0,0.00026,60]
[330067646,1718984509413,150.0,0.00010998,2]
[330067647,1718984509437,150.0,0.00010998,2]
[330067648,1718984509460,150.0,0.00010998,2]
[330067649,1718984509481,137.71262734,0.00010998,2]
[330067650,1718984511764,-269.20894973,0.00011098,2]
[330067651,1718984511787,-206.49348415,0.00011098,2]
[330067652,1718984511811,-35.60734578,0.00011098,2]
[330067656,1718984565171,-119.39265422,0.00011098,2]
[330067657,1718984565198,-165.92330524,0.00011098,2]
[330067658,1718984566588,-263.23883182,0.00011098,2]
[330067659,1718984571364,263.23883182,0.00011098,2]
[330067660,1718984572710,-476.76829806,0.00011098,2]
[330067661,1718984573418,-868.34176295,0.00011098,2]
[330067662,1718984574050,-155.0,0.00011098,2]
[330067663,1718984574742,-800.84762881,0.00011098,2]
[330067664,1718984575318,-155.0,0.00011098,2]
[330067699,1718985032115,-955.49830246,0.00011086,2]
[330067700,1718985032128,-325.06176613,0.00011086,2]
[330067701,1718985032249,-593.74102561,0.00011086,2]
[330067702,1718985032259,-5378.23625391,0.00011087,2]
[330067703,1718985032268,-345.95893679,0.00011087,2]
[330067704,1718985032278,-345.95893679,0.00011087,2]
[330067705,1718985032287,-491.4546726,0.00011087,2]
[330067706,1718985032297,-491.4546726,0.00011088,2]
[330067707,1718985032307,-2496.14472866,0.00011097,2]
[330067708,1718985032316,-1383.58785925,0.00011098,2]
[330067709,1718985032329,-1837.71670388,0.00011098,2]
[330067710,1718985032366,-3294.77336894,0.00011098,2]
[330067711,1718985032377,-1500.599673,0.00011098,2]
[330067712,1718985032389,-2400.0,0.00011098,2]
[330067716,1718985032551,-9881.56086873,0.00011098,2]
[330067717,1718985032562,-263.23883182,0.00011098,2]
[330067718,1718985032571,-224.54710217,0.00011098,2]
[330067719,1718985032580,-181454.85883426,0.000112,2]
[330067721,1718985032591,-345.17254047,0.000112,2]
[330067723,1718985032603,-903.00185865,0.000112,2]
[330067725,1718985032618,-802.20391275,0.000112,2]
[330067726,1718985032640,-772.1,0.000112,2]
[330067753,1718985038270,-6287.21120919,0.000112,2]
[330067754,1718985038282,-9000.00010836,0.000112,2]
[330067755,1718985038338,-304.6,0.000112,2]
[330067756,1718985038373,-636.94134,0.000112,2]
[330067763,1718985040301,-1120.63480527,0.000112,2]
[330067764,1718985040539,-5326.19169983,0.000112,2]
[330067765,1718985040549,-269.20894973,0.00012191,2]
[330067766,1718985040559,-150.99,0.00012192,2]
[330067767,1718985040569,-171.92,0.00012868,2]
[330067768,1718985040579,-150.99,0.00012868,2]
[330067769,1718985040589,-218.98195667,0.00013117,2]
[330067770,1718985040599,-201.36,0.00013118,2]
[330067771,1718985040608,-155.0,0.00013383,2]
[330067772,1718985040618,-155.0,0.00013383,2]
[330067773,1718985040629,-155.0,0.00013384,2]
[330067774,1718985040638,-482.76727412,0.00013384,2]
[330067775,1718985040647,-3329.64588364,0.00013384,2]
[330067776,1718985040657,-155.0,0.00013442,2]
[330067777,1718985040667,-155.0,0.00013442,2]
[330067778,1718985040681,-158.21632429,0.00013443,2]
[330067779,1718985040691,-1251.31291923,0.00013443,2]
[330067780,1718985040700,-180.77276171,0.00013451,2]
[330067781,1718985040710,-157.51406348,0.00013452,2]
[330067782,1718985040720,-155.0,0.00013452,2]
[330067783,1718985040730,-209.83387148,0.00013452,2]
[330067784,1718985040740,-155.0,0.00014468,2]
[330067786,1718985040753,-1069.4164457,0.00014708,2]
[330067788,1718985040762,-209.09123467,0.00014709,2]
[330067790,1718985040772,-155.0,0.00014709,2]
[330067792,1718985040782,-155.0,0.0001471,2]
[330067794,1718985040792,-660.11977562,0.00014938,2]
[330067796,1718985040805,-155.0,0.00014938,2]
[330067798,1718985040814,-155.0,0.00014939,2]
[330067800,1718985040824,-155.0,0.00014939,2]
[330067802,1718985040834,-236.14359397,0.00014939,2]
[330067804,1718985040844,-155.0,0.0001494,2]
[330067806,1718985040853,-155.0,0.00014941,2]
[330067809,1718985040863,-217.79404424,0.00014941,2]
[330067811,1718985040873,-1262.77288771,0.00014942,2]
[330067813,1718985040882,-283.44364674,0.00014942,2]
[330067814,1718985040892,-366.0285791,0.00014942,2]
[330067816,1718985040901,-2490.51964507,0.00014942,2]
[330067818,1718985040910,-269.44071926,0.00014942,2]
[330067820,1718985040920,-242.03430423,0.00014942,2]
[330067822,1718985040929,-1133.53475068,0.00014943,2]
[330067824,1718985040938,-830.71890196,0.00014943,2]
[330067826,1718985040948,-155.0,0.00014944,2]
[330067828,1718985040957,-388.48497612,0.00014944,2]
[330067830,1718985040966,-155.0,0.00014945,2]
[330067832,1718985040976,-235.16032657,0.00014945,2]
[330067834,1718985040991,-437.90975551,0.00014945,2]
[330067836,1718985041001,-155.0,0.00014945,2]
[330067838,1718985041010,-364.67222398,0.00014945,2]
[330067840,1718985041020,-437.90975551,0.00014945,2]
[330067842,1718985041030,-155.0,0.00014945,2]
[330067844,1718985041039,-196.12854204,0.00014945,2]
[330067847,1718985041049,-526.28955324,0.00014946,2]
[330067849,1718985041058,-363.71116501,0.00014946,2]
[330067850,1718985041067,-2198.0801445,0.00014947,2]
[330067852,1718985041077,-726.44768713,0.00014948,2]
[330067853,1718985041087,-1488.02945496,0.00014948,2]
[330067854,1718985041098,-155.0,0.00014949,2]
[330067855,1718985041108,-155.0,0.00014949,2]
[330067856,1718985041119,-339.36468135,0.00014949,2]
[330067857,1718985041128,-339.36468135,0.00014949,2]
[330067858,1718985041138,-163.5767579,0.0001495,2]
[330067859,1718985041148,-158.80388924,0.0001495,2]
[330067860,1718985041157,-499.99,0.00014974,2]